fUST/lending_fUST_20240830
["ID","MTS","AMOUNT","RATE_DAILY","PERIOD"]
[336597573,1724967040417,-791.51,0.00019178,2]
[336597574,1724967040429,-500.0,0.00019178,2]
[336597575,1724967040439,-500.0,0.00019178,2]
[336597576,1724967040449,-500.0,0.00019178,2]
[336597577,1724967040462,-500.0,0.00019178,2]
[336597578,1724967040472,-500.0,0.00019178,2]
[336597579,1724967040484,-500.0,0.00019178,2]
[336597580,1724967040493,-500.0,0.00019178,2]
[336597581,1724967040502,-500.0,0.00019178,2]
[336597582,1724967040511,-500.0,0.00019178,2]
[336597583,1724967040522,-500.0,0.00019178,2]
[336597584,1724967040532,-500.0,0.00019178,2]
[336597585,1724967040541,-501.22880114,0.00019178,2]
[336597586,1724967040551,-507.48470901,0.00019178,2]
[336597587,1724967040562,-508.16607311,0.00019178,2]
[336597588,1724967040572,-500.0,0.00019178,2]
[336597589,1724967040582,-500.0,0.00019178,2]
[336597590,1724967040591,-500.0,0.00019178,2]
[336597591,1724967040600,-500.0,0.00019178,2]
[336597592,1724967040609,-500.0,0.00019178,2]
[336597593,1724967040618,-500.0,0.00019178,2]
[336597594,1724967040628,-500.0,0.00019178,2]
[336597595,1724967040637,-500.0,0.00019178,2]
[336597596,1724967040646,-500.0,0.00019178,2]
[336597597,1724967040655,-365.70359892,0.00019178,2]
[336597598,1724967040665,-1249.720836,0.00019178,2]
[336597599,1724967040674,-500.0,0.00019178,2]
[336597600,1724967040683,-901.38,0.00019178,2]
[336597601,1724967040692,-1249.720836,0.00019178,2]
[336597602,1724967040701,-500.0,0.00019178,2]
[336597603,1724967040710,-502.12198801,0.00019178,2]
[336597604,1724967040719,-151.0,0.00019178,2]
[336597605,1724967040729,-500.0,0.00019178,2]
[336597606,1724967040738,-500.0,0.00019178,2]
[336597607,1724967040747,-500.0,0.00019178,2]
[336597608,1724967040756,-500.0,0.00019178,2]
[336597609,1724967040765,-500.0,0.00019178,2]
[336597610,1724967040774,-500.0,0.00019178,2]
[336597611,1724967040784,-500.0,0.00019178,2]
[336597612,1724967040793,-500.0,0.00019178,2]
[336597613,1724967040803,-500.0,0.00019178,2]
[336597614,1724967040812,-500.0,0.00019178,2]
[336597615,1724967040822,-500.0,0.00019178,2]
[336597616,1724967040832,-421.34183977,0.00019178,2]
[336597617,1724967040841,-500.0,0.00019178,2]
[336597618,1724967040850,-500.0,0.00019178,2]
[336597619,1724967040859,-500.0,0.00019178,2]
[336597620,1724967040869,-500.0,0.00019178,2]
[336597621,1724967040878,-559.61210132,0.00019178,2]
[336597622,1724967040887,-500.0,0.00019178,2]
[336597623,1724967040896,-500.0,0.00019178,2]
[336597624,1724967040905,-500.0,0.00019178,2]
[336597625,1724967040914,-500.0,0.00019178,2]
[336597626,1724967040923,-500.0,0.00019178,2]
[336597627,1724967040932,-500.0,0.00019178,2]
[336597628,1724967040941,-500.0,0.00019178,2]
[336597629,1724967040951,-507.34958046,0.00019178,2]
[336597630,1724967040960,-226.711725,0.00019178,2]
[336597631,1724967040969,-500.0,0.00019178,2]
[336597632,1724967040978,-151.0,0.00019178,2]
[336597633,1724967040987,-500.0,0.00019178,2]
[336597634,1724967040996,-1243.261964,0.00019178,2]
[336597635,1724967041006,-226.711725,0.00019178,2]
[336597636,1724967041015,-876.82,0.00019178,2]
[336597637,1724967041025,-500.0,0.00019178,2]
[336597638,1724967041034,-503.11875468,0.00019178,2]
[336597639,1724967041043,-1243.261964,0.00019178,2]
[336597640,1724967041053,-500.0,0.00019178,2]
[336597641,1724967041062,-500.0,0.00019178,2]
[336597642,1724967041072,-500.0,0.00019178,2]
[336597643,1724967041081,-151.0,0.00019178,2]
[336597644,1724967041090,-500.0,0.00019178,2]
[336597645,1724967041099,-500.0,0.00019178,2]
[336597646,1724967041108,-500.0,0.00019178,2]
[336597647,1724967041117,-500.0,0.00019178,2]
[336597648,1724967041126,-500.0,0.00019178,2]
[336597649,1724967041135,-500.0,0.00019178,2]
[336597650,1724967041145,-500.0,0.00019178,2]
[336597651,1724967041154,-500.0,0.00019178,2]
[336597652,1724967041163,-645.75569571,0.00019178,2]
[336597653,1724967041172,-500.0,0.00019178,2]
[336597654,1724967041182,-180.60216454,0.00019178,2]
[336597655,1724967041191,-500.0,0.00019178,2]
[336597656,1724967041201,-500.0,0.00019178,2]
[336597657,1724967041210,-500.0,0.00019178,2]
[336597658,1724967041220,-151.0,0.00019178,2]
[336597659,1724967041231,-500.0,0.00019178,2]
[336597660,1724967041240,-500.0,0.00019178,2]
[336597661,1724967041250,-500.0,0.00019178,2]
[336597662,1724967041259,-500.0,0.00019178,2]
[336597663,1724967041269,-500.0,0.00019178,2]
[336597664,1724967041279,-500.0,0.00019178,2]
[336597665,1724967041288,-500.0,0.00019178,2]
[336597666,1724967041298,-500.0,0.00019178,2]
[336597667,1724967041307,-500.0,0.00019178,2]
[336597668,1724967041317,-311.31275787,0.00019178,2]
[336597669,1724967041326,-500.0,0.00019178,2]
[336597670,1724967041336,-941.26,0.00019178,2]
[336597671,1724967041345,-500.0,0.00019178,2]
[336597672,1724967041355,-500.0,0.00019178,2]
[336597673,1724967041365,-500.0,0.00019178,2]
[336597674,1724967041375,-500.0,0.00019178,2]
[336597675,1724967041385,-500.0,0.00019178,2]
[336597676,1724967041395,-500.0,0.00019178,2]
[336597677,1724967041404,-500.0,0.00019178,2]
[336597678,1724967041413,-618.21217825,0.00019178,2]
[336597679,1724967041422,-500.0,0.00019178,2]
[336597680,1724967041431,-806.07,0.00019178,2]
[336597681,1724967041440,-501.13742906,0.00019178,2]
[336597682,1724967041586,-500.97508997,0.00019178,2]
[336597683,1724967041595,-279.81274942,0.00019178,2]
[336597684,1724967041605,-500.0,0.00019178,2]
[336597685,1724967041614,-501.20557834,0.00019178,2]
[336597686,1724967041623,-500.0,0.00019178,2]
[336597687,1724967041633,-500.0,0.00019178,2]
[336597688,1724967041642,-500.0,0.00019178,2]
[336597689,1724967041652,-151.0,0.00019178,2]
[336597690,1724967041662,-1264.038371,0.00019178,2]
[336597691,1724967041671,-500.66822901,0.00019178,2]
[336597692,1724967041681,-500.0,0.00019178,2]
[336597693,1724967041690,-1264.038371,0.00019178,2]
[336597694,1724967041699,-524.07508133,0.00019178,2]
[336597695,1724967041708,-151.174201,0.00019178,2]
[336597696,1724967041718,-500.0,0.00019178,2]
[336597697,1724967041727,-500.0,0.00019178,2]
[336597698,1724967041736,-500.0,0.00019178,2]
[336597699,1724967041746,-151.0,0.00019178,2]
[336597700,1724967041755,-500.0,0.00019178,2]
[336597701,1724967041764,-500.0,0.00019178,2]
[336597702,1724967041773,-500.0,0.00019178,2]
[336597703,1724967041783,-502.19347329,0.00019178,2]
[336597704,1724967041792,-583.87373975,0.00019178,2]
[336597705,1724967041801,-151.0,0.00019178,2]
[336597706,1724967041810,-500.0,0.00019178,2]
[336597707,1724967041819,-500.0,0.00019178,2]
[336597708,1724967041829,-501.05672449,0.00019178,2]
[336597709,1724967041838,-500.0,0.00019178,2]
[336597710,1724967041847,-500.0,0.00019178,2]
[336597711,1724967041856,-500.0,0.00019178,2]
[336597712,1724967041866,-501.38354752,0.00019178,2]
[336597713,1724967041874,-500.0,0.00019178,2]
[336597714,1724967041886,-500.0,0.00019178,2]
[336597715,1724967041895,-500.0,0.00019178,2]
[336597716,1724967041904,-500.0,0.00019178,2]
[336597717,1724967041913,-520.96835983,0.00019178,2]
[336597718,1724967041922,-1894.5,0.00019178,2]
[336597719,1724967041931,-500.0,0.00019178,2]
[336597720,1724967041941,-500.0,0.00019178,2]
[336597721,1724967041950,-501.34026692,0.00019178,2]
[336597722,1724967041959,-500.0,0.00019178,2]
[336597723,1724967041969,-636.14328071,0.00019178,2]
[336597724,1724967041979,-500.0,0.00019178,2]
[336597725,1724967041988,-168.37460567,0.00019178,2]
[336597726,1724967041997,-500.0,0.00019178,2]
[336597727,1724967042007,-500.0,0.00019178,2]
[336597728,1724967042017,-500.0,0.00019178,2]
[336597729,1724967042026,-742.58,0.00019178,2]
[336597730,1724967042035,-500.0,0.00019178,2]
[336597731,1724967042044,-500.0,0.00019178,2]
[336597732,1724967042054,-500.0,0.00019178,2]
[336597733,1724967042064,-649.81,0.00019178,2]
[336597734,1724967042073,-500.40715464,0.00019178,2]
[336597735,1724967042083,-500.0,0.00019178,2]
[336597736,1724967042092,-500.0,0.00019178,2]
[336597737,1724967042102,-500.0,0.00019178,2]
[336597738,1724967042111,-500.0,0.00019178,2]
[336597739,1724967042121,-500.0,0.00019178,2]
[336597740,1724967042133,-500.0,0.00019178,2]
[336597741,1724967042143,-500.0,0.00019178,2]
[336597742,1724967042152,-500.0,0.00019178,2]
[336597743,1724967042162,-500.0,0.00019178,2]
[336597744,1724967042171,-500.0,0.00019178,2]
[336597745,1724967042180,-555.02577679,0.00019178,2]
[336597746,1724967042189,-579.28789027,0.00019178,2]
[336597747,1724967042198,-151.0,0.00019178,2]
[336597748,1724967042208,-500.0,0.00019178,2]
[336597749,1724967042217,-500.0,0.00019178,2]
[336597750,1724967042226,-500.0,0.00019178,2]
[336597751,1724967042235,-500.0,0.00019178,2]
[336597752,1724967042244,-500.0,0.00019178,2]
[336597753,1724967042254,-500.0,0.00019178,2]
[336597754,1724967042263,-780.33,0.00019178,2]
[336597755,1724967042272,-500.18813782,0.00019178,2]
[336597756,1724967042282,-500.0,0.00019178,2]
[336597757,1724967042291,-500.0,0.00019178,2]
[336597758,1724967042300,-500.0,0.00019178,2]
[336597759,1724967042310,-500.0,0.00019178,2]
[336597760,1724967042319,-500.0,0.00019178,2]
[336597761,1724967042329,-1897.18,0.00019178,2]
[336597762,1724967042338,-500.0,0.00019178,2]
[336597763,1724967042347,-475.164422,0.00019178,2]
[336597764,1724967042356,-475.164422,0.00019178,2]
[336597765,1724967042366,-500.0,0.00019178,2]
[336597766,1724967042375,-865.87,0.00019178,2]
[336597767,1724967042385,-500.0,0.00019178,2]
[336597768,1724967042395,-500.0,0.00019178,2]
[336597769,1724967042404,-500.0,0.00019178,2]
[336597770,1724967042414,-475.164422,0.00019178,2]
[336597771,1724967042423,-475.164422,0.00019178,2]
[336597772,1724967042432,-500.0,0.00019178,2]
[336597773,1724967042441,-500.52118151,0.00019178,2]
[336597774,1724967042451,-500.0,0.00019178,2]
[336597775,1724967042460,-500.0,0.00019178,2]
[336597776,1724967042470,-500.0,0.00019178,2]
[336597777,1724967042479,-1524.3,0.00019178,2]
[336597778,1724967042493,-500.44153153,0.00019178,2]
[336597779,1724967042502,-500.0,0.00019178,2]
[336597780,1724967042512,-820.91,0.00019178,2]
[336597781,1724967042522,-500.0,0.00019178,2]
[336597782,1724967042533,-151.0,0.00019178,2]
[336597783,1724967042543,-151.0,0.00019178,2]
[336597784,1724967042552,-501.99014026,0.00019178,2]
[336597785,1724967042564,-500.0,0.00019178,2]
[336597786,1724967042573,-500.0,0.00019178,2]
[336597787,1724967042583,-151.0,0.00019178,2]
[336597788,1724967042592,-151.0,0.00019178,2]
[336597789,1724967042601,-500.0,0.00019178,2]
[336597790,1724967042611,-500.0,0.00019178,2]
[336597791,1724967042620,-690.46,0.00019178,2]
[336597792,1724967042629,-297.97003141,0.00019178,2]
[336597793,1724967042638,-500.0,0.00019178,2]
[336597794,1724967042648,-500.23819614,0.00019178,2]
[336597795,1724967042658,-500.0,0.00019178,2]
[336597796,1724967042669,-500.0,0.00019178,2]
[336597797,1724967042679,-558.83372195,0.00019178,2]
[336597798,1724967042690,-500.0,0.00019178,2]
[336597799,1724967042702,-500.0,0.00019178,2]
[336597800,1724967042713,-886.75,0.00019178,2]
[336597801,1724967042725,-500.0,0.00019178,2]
[336597802,1724967042736,-500.0,0.00019178,2]
[336597803,1724967042745,-500.0,0.00019178,2]
[336597804,1724967042755,-500.0,0.00019178,2]
[336597805,1724967042766,-248.064682,0.00019178,2]
[336597806,1724967042777,-500.0,0.00019178,2]
[336597807,1724967042788,-500.0,0.00019178,2]
[336597808,1724967042797,-500.0,0.00019178,2]
[336597809,1724967042808,-500.0,0.00019178,2]
[336597810,1724967042819,-500.0,0.00019178,2]
[336597811,1724967042831,-196.28814112,0.00019178,2]
[336597812,1724967042841,-500.0,0.00019178,2]
[336597813,1724967042851,-457.93345033,0.00019178,2]
[336597815,1724967042861,-853.43,0.00019178,2]
[336597816,1724967042871,-500.0,0.00019178,2]
[336597817,1724967042882,-500.0,0.00019178,2]
[336597818,1724967042891,-500.0,0.00019178,2]
[336597819,1724967042901,-151.147523,0.00019178,2]
[336597821,1724967042911,-500.0,0.00019178,2]
[336597822,1724967042921,-500.0,0.00019178,2]
[336597823,1724967042931,-500.0,0.00019178,2]
[336597824,1724967042942,-433.40564128,0.00019178,2]
[336597825,1724967042952,-500.0,0.00019178,2]
[336597826,1724967042962,-151.0,0.00019178,2]
[336597827,1724967042974,-151.0,0.00019178,2]
[336597828,1724967042985,-500.0,0.00019178,2]
[336597829,1724967042996,-500.0,0.00019178,2]
[336597830,1724967043005,-500.0,0.00019178,2]
[336597831,1724967043014,-500.0,0.00019178,2]
[336597832,1724967043023,-500.0,0.00019178,2]
[336597833,1724967043032,-569.82,0.00019178,2]
[336597834,1724967043042,-791.06,0.00019178,2]
[336597835,1724967043052,-508.68282469,0.00019178,2]
[336597836,1724967043062,-889.487112,0.00019178,2]
[336597837,1724967043071,-889.487112,0.00019178,2]
[336597838,1724967043081,-933.73,0.00019178,2]
[336597839,1724967043091,-500.0,0.00019178,2]
[336597840,1724967043100,-151.0,0.00019178,2]
[336597841,1724967043109,-151.0,0.00019178,2]
[336597842,1724967043119,-500.0,0.00019178,2]
[336597843,1724967043128,-889.487112,0.00019178,2]
[336597845,1724967043138,-500.0,0.00019178,2]
[336597846,1724967043147,-889.487112,0.00019178,2]
[336597848,1724967043156,-500.0,0.00019178,2]
[336597849,1724967043166,-500.0,0.00019178,2]
[336597850,1724967043176,-500.0,0.00019178,2]
[336597851,1724967043186,-265.253828,0.00019178,2]
[336597852,1724967043196,-500.0,0.00019178,2]
[336597853,1724967043205,-500.0,0.00019178,2]
[336597854,1724967043215,-726.85,0.00019178,2]
[336597855,1724967043225,-500.0,0.00019178,2]
[336597856,1724967043236,-500.0,0.00019178,2]
[336597857,1724967043245,-500.0,0.00019178,2]
[336597858,1724967043255,-500.0,0.00019178,2]
[336597859,1724967043265,-534.0,0.00019178,2]
[336597860,1724967043274,-500.0,0.00019178,2]
[336597861,1724967043284,-7189.40390184,0.00019178,2]
[336597862,1724967043295,-500.0,0.00019178,2]
[336597863,1724967043304,-508.72953757,0.00019178,2]
[336597864,1724967043314,-612.12,0.00019178,2]
[336597865,1724967043324,-500.0,0.00019178,2]
[336597866,1724967043333,-646.22,0.00019178,2]
[336597867,1724967043343,-500.0,0.00019178,2]
[336597868,1724967043352,-500.0,0.00019178,2]
[336597869,1724967043362,-500.0,0.00019178,2]
[336597870,1724967043371,-500.0,0.00019178,2]
[336597871,1724967043381,-500.0,0.00019178,2]
[336597873,1724967043395,-500.0,0.00019178,2]
[336597874,1724967043405,-500.0,0.00019178,2]
[336597875,1724967043415,-500.0,0.00019178,2]
[336597876,1724967043425,-500.0,0.00019178,2]
[336597877,1724967043434,-500.0,0.00019178,2]
[336597878,1724967043444,-500.0,0.00019178,2]
[336597879,1724967043454,-500.0,0.00019178,2]
[336597880,1724967043464,-500.0,0.00019178,2]
[336597881,1724967043474,-607.98009222,0.00019178,2]
[336597882,1724967043488,-500.0,0.00019178,2]
[336597883,1724967043499,-151.0,0.00019178,2]
[336597884,1724967043508,-151.0,0.00019178,2]
[336597885,1724967043518,-590.65957572,0.00019178,2]
[336597886,1724967043529,-640.82,0.00019178,2]
[336597887,1724967043539,-500.0,0.00019178,2]
[336597888,1724967043549,-330.90053697,0.00019178,2]
[336597889,1724967043560,-500.0,0.00019178,2]
[336597890,1724967043569,-500.0,0.00019178,2]
[336597891,1724967043580,-500.0,0.00019178,2]
[336597892,1724967043591,-500.0,0.00019178,2]
[336597893,1724967043603,-500.0,0.00019178,2]
[336597894,1724967043613,-500.0,0.00019178,2]
[336597895,1724967043622,-500.0,0.00019178,2]
[336597896,1724967043632,-494.47712,0.00019178,2]
[336597897,1724967043641,-494.47712,0.00019178,2]
[336597898,1724967043652,-500.0,0.00019178,2]
[336597899,1724967043662,-500.0,0.00019178,2]
[336597900,1724967043674,-500.0,0.00019178,2]
[336597901,1724967043684,-671.45,0.00019178,2]
[336597902,1724967043695,-500.0,0.00019178,2]
[336597903,1724967043706,-1232.01,0.00019178,2]
[336597904,1724967043715,-494.47712,0.00019178,2]
[336597905,1724967043726,-494.47712,0.00019178,2]
[336597906,1724967043737,-500.0,0.00019178,2]
[336597907,1724967043746,-217.394414,0.00019178,2]
[336597908,1724967043758,-644.11,0.00019178,2]
[336597909,1724967043768,-217.394414,0.00019178,2]
[336597910,1724967043779,-500.0,0.00019178,2]
[336597911,1724967043790,-500.0,0.00019178,2]
[336597912,1724967043801,-217.394414,0.00019178,2]
[336597913,1724967043812,-500.0,0.00019178,2]
[336597914,1724967043824,-217.394414,0.00019178,2]
[336597915,1724967043834,-501.69502549,0.00019178,2]
[336597916,1724967043844,-754.21,0.00019178,2]
[336597917,1724967043854,-500.0,0.00019178,2]
[336597918,1724967043864,-500.0,0.00019178,2]
[336597919,1724967043874,-500.0,0.00019178,2]
[336597920,1724967043885,-856.46,0.00019178,2]
[336597921,1724967043895,-500.0,0.00019178,2]
[336597922,1724967043905,-500.85865272,0.00019178,2]
[336597923,1724967043915,-500.0,0.00019178,2]
[336597924,1724967043928,-500.0,0.00019178,2]
[336597925,1724967043940,-151.0,0.00019178,2]
[336597926,1724967043951,-500.0,0.00019178,2]
[336597927,1724967043962,-151.0,0.00019178,2]
[336597928,1724967043974,-760.06,0.00019178,2]
[336597929,1724967043986,-522.91594586,0.00019178,2]
[336597930,1724967043995,-500.0,0.00019178,2]
[336597931,1724967044038,-500.0,0.00019178,2]
[336597932,1724967044048,-500.0,0.00019178,2]
[336597933,1724967044058,-564.05,0.00019178,2]
[336597934,1724967044068,-500.56889513,0.00019178,2]
[336597935,1724967044079,-500.0,0.00019178,2]
[336597936,1724967044090,-500.0,0.00019178,2]
[336597937,1724967044099,-500.0,0.00019178,2]
[336597938,1724967044109,-151.0,0.00019178,2]
[336597939,1724967044119,-151.0,0.00019178,2]
[336597940,1724967044128,-500.0,0.00019178,2]
[336597941,1724967044138,-500.0,0.00019178,2]
[336597942,1724967044149,-500.0,0.00019178,2]
[336597943,1724967044158,-500.0,0.00019178,2]
[336597944,1724967044170,-330.46309163,0.00019178,2]
[336597945,1724967044180,-151.0,0.00019178,2]
[336597946,1724967044190,-151.0,0.00019178,2]
[336597947,1724967044200,-522.24,0.00019178,2]
[336597948,1724967044210,-501.4546758,0.00019178,2]
[336597949,1724967044221,-500.0,0.00019178,2]
[336597950,1724967044231,-500.0,0.00019178,2]
[336597951,1724967044242,-500.0,0.00019178,2]
[336597952,1724967044253,-500.0,0.00019178,2]
[336597953,1724967044263,-500.0,0.00019178,2]
[336597954,1724967044275,-500.0,0.00019178,2]
[336597955,1724967044286,-500.0,0.00019178,2]
[336597956,1724967044296,-751.06,0.00019178,2]
[336597957,1724967044306,-1098.52,0.00019178,2]
[336597958,1724967044316,-500.0,0.00019178,2]
[336597959,1724967044326,-500.0,0.00019178,2]
[336597960,1724967044336,-500.0,0.00019178,2]
[336597961,1724967044346,-500.0,0.00019178,2]
[336597962,1724967044356,-1079.99,0.00019178,2]
[336597963,1724967044369,-500.0,0.00019178,2]
[336597964,1724967044381,-151.0,0.00019178,2]
[336597965,1724967044391,-500.0,0.00019178,2]
[336597966,1724967044401,-151.0,0.00019178,2]
[336597967,1724967044411,-500.0,0.00019178,2]
[336597968,1724967044422,-151.0,0.00019178,2]
[336597969,1724967044433,-500.0,0.00019178,2]
[336597970,1724967044444,-319.82131593,0.00019178,2]
[336597971,1724967044454,-500.0,0.00019178,2]
[336597972,1724967044463,-500.0,0.00019178,2]
[336597973,1724967044474,-576.07,0.00019178,2]
[336597974,1724967044488,-625.22,0.00019178,2]
[336597975,1724967044499,-500.0,0.00019178,2]
[336597976,1724967044509,-500.0,0.00019178,2]
[336597977,1724967044519,-1533.18045767,0.00019178,2]
[336597978,1724967044550,-405.85748006,0.00019178,2]
[336597979,1724967044629,-274.98206227,0.00019178,2]
[336597980,1724967044640,-2214.02,0.00019178,2]
[336597981,1724967044649,-2214.02,0.00019178,2]
[336597982,1724967044658,-2214.02,0.00019178,2]
[336597983,1724967044667,-2214.02,0.00019178,2]
[336597984,1724967044676,-1592.28,0.00019178,2]
[336597985,1724967044686,-2214.02,0.00019178,2]
[336597986,1724967044695,-151.0,0.00019178,2]
[336597987,1724967044704,-2214.02,0.00019178,2]
[336597988,1724967044713,-500.0,0.00019178,2]
[336597989,1724967044722,-2214.02,0.00019178,2]
[336597990,1724967044731,-151.0,0.00019178,2]
[336597991,1724967044740,-151.0,0.00019178,2]
[336597992,1724967044752,-685.91,0.00019178,2]
[336597993,1724967044763,-500.0,0.00019178,2]
[336597994,1724967044775,-500.0,0.00019178,2]
[336597995,1724967044786,-975.51,0.00019178,2]
[336597996,1724967044797,-500.0,0.00019178,2]
[336597997,1724967044808,-500.0,0.00019178,2]
[336597998,1724967044819,-500.0,0.00019178,2]
[336597999,1724967044829,-1200.51,0.00019178,2]
[336598000,1724967044839,-649.12800155,0.00019178,2]
[336598001,1724967044848,-500.0,0.00019178,2]
[336598002,1724967044858,-500.0,0.00019178,2]
[336598003,1724967044866,-500.0,0.00019178,2]
[336598004,1724967044876,-582.90707717,0.00019178,2]
[336598005,1724967044885,-151.0,0.00019178,2]
[336598006,1724967044895,-151.0,0.00019178,2]
[336598007,1724967044904,-151.0,0.00019178,2]
[336598008,1724967044914,-151.0,0.00019178,2]
[336598009,1724967044925,-167.601761,0.00019178,2]
[336598010,1724967044934,-168.066792,0.00019178,2]
[336598011,1724967044943,-2000.78630109,0.00019352,2]
[336598012,1724967044954,-2214.02,0.00019399,2]
[336598013,1724967044964,-300.0,0.000194,8]
[336598014,1724967044973,-151.0,0.000194,2]
[336598015,1724967044982,-151.0,0.000194,2]
[336598016,1724967044991,-151.0,0.000194,2]
[336598017,1724967045000,-1264.038371,0.000194,2]
[336598018,1724967045009,-1264.038371,0.000194,2]
[336598019,1724967045021,-151.0,0.000194,2]
[336598020,1724967045031,-4894.01626741,0.00019441,2]
[336598021,1724967045041,-151.0,0.00019442,2]
[336598022,1724967045052,-151.0,0.00019442,2]
[336598023,1724967045062,-151.0,0.00019442,2]
[336598024,1724967045071,-151.0,0.00019442,2]
[336598025,1724967045081,-151.0,0.00019442,2]
[336598026,1724967045091,-151.0,0.00019442,2]
[336598027,1724967045101,-151.0,0.00019442,2]
[336598028,1724967045112,-494.47712,0.00019442,2]
[336598029,1724967045121,-494.47712,0.00019442,2]
[336598030,1724967045131,-217.394414,0.00019442,2]
[336598031,1724967045142,-217.394414,0.00019442,2]
[336598032,1724967045151,-151.0,0.00019442,2]
[336598033,1724967045161,-151.0,0.00019442,2]
[336598034,1724967045170,-1068.59504647,0.00019442,2]
[336598035,1724967045289,-2.00930355,0.00019178,2]
[336598060,1724967666916,327.330428,0.00014247,2]
[336598108,1724968232345,-300.0,0.00018026,2]
[336598109,1724968232354,-179.518,0.00018027,2]
[336598117,1724968238466,-12946.4633787,0.00018027,2]
[336598118,1724968238476,-153.68673217,0.000187,14]
[336598119,1724968238486,-3538.05,0.00019,4]
[336598120,1724968238495,-996.22569172,0.00019,2]
[336598121,1724968238504,-2403.83888819,0.00019078,2]
[336598122,1724968238514,-706.63401994,0.00019099,2]
[336598123,1724968238524,-17453.095557,0.000191,2]
[336598124,1724968238534,-2347.18916492,0.000191,2]
[336598125,1724968238545,-41677.7871357,0.00019168,2]
[336598126,1724968238557,-240.64886019,0.00019173,2]
[336598127,1724968238568,-500.13488323,0.00019173,2]
[336598128,1724968238579,-300.71827607,0.00019173,2]
[336598129,1724968238592,-500.0,0.00019173,2]
[336598131,1724968238602,-450.48479899,0.00019173,2]
[336598132,1724968238611,-168.09411654,0.00019173,2]
[336598134,1724968238621,-167.30848502,0.00019173,2]
[336598135,1724968238630,-500.0,0.00019177,2]
[336598137,1724968238639,-256.16980908,0.00019177,2]
[336598138,1724968238650,-324.07277532,0.00019177,2]
[336598139,1724968238661,-2371.90824559,0.00019178,5]
[336598140,1724968238670,-1654.51693219,0.00019178,5]
[336598141,1724968238680,-151.0,0.00019178,2]
[336598142,1724968238689,-151.0,0.00019178,2]
[336598143,1724968238698,-151.0,0.00019178,2]
[336598144,1724968238709,-151.0,0.00019178,2]
[336598145,1724968238718,-151.0,0.00019178,2]
[336598146,1724968238727,-151.0,0.00019178,2]
[336598147,1724968238737,-504.91247799,0.00019178,2]
[336598148,1724968238748,-500.0,0.00019178,2]
[336598149,1724968238758,-368.25034655,0.00019178,2]
[336598150,1724968238941,-500.66973205,0.00019178,2]
[336598151,1724968238953,-500.0,0.00019178,2]
[336598152,1724968238963,-252.25085464,0.00019178,2]
[336598153,1724968238973,-501.18986335,0.00019178,2]
[336598154,1724968238985,-500.0,0.00019178,2]
[336598155,1724968238996,-515.4588915,0.00019178,2]
[336598156,1724968239007,-500.0,0.00019178,2]
[336598157,1724968239016,-500.0,0.00019178,2]
[336598158,1724968239026,-500.0,0.00019178,2]